[Event "DVM U12w 2024"]
[Site "Bad Homburg"]
[Date "2024.12.27"]
[Round "2"]
[White "Litvinchuk, Mariia"]
[Black "Doberchak, Emily Alice"]
[Result "0-1"]
[ECO "C54"]
[WhiteElo "972"]
[BlackElo "1106"]
[Annotator "NA RC"]
[PlyCount "132"]
[EventDate "2024.12.23"]
[EventType "team-tourn"]
[EventRounds "7"]
[EventCountry "GER"]
[SourceTitle "playchess.com"]
[Source "ChessBase"]
[SourceQuality "1"]
[TimeControl "40/5400+30:1800+30"]

1. e4 {[%emt 0:00:03]} e5 {[%emt 0:00:08]} 2. Nf3 {[%emt 0:00:04]} Nc6 {[%emt 0:00:08]} 3. Bc4 {[%emt 0:00:09]} Bc5 {[%emt 0:00:09]} 4. c3 {[%emt 0:00:05]} d6 {[%emt 0:01:27]} 5. d3 {[%emt 0:00:14]} Nf6 {[%emt 0:00:47]} 6. Be3 {[%emt 0:00:10]} b6 {[%emt 0:00:42]} 7. Nbd2 {[%emt 0:01:04]} Bg4 {[%emt 0:00:13]} 8. h3 {[%emt 0:00:15]} Bh5 {[%emt 0:00:29]} 9. Nf1 {[%emt 0:00:29]} d5 {[%emt 0:01:58]} 10. Bb5 {[%emt 0:01:30]} Qd6 {[%emt 0:01:12]} 11. Ng3 {[%emt 0:00:51]} Bg6 {[%emt 0:01:44]} 12. O-O {[%emt 0:02:37]} O-O {[%emt 0:00:28]} 13. b4 {[%emt 0:01:13]} Bxe3 {[%emt 0:00:21]} 14. fxe3 {[%emt 0:00:17]} dxe4 {[%emt 0:01:29]} 15. dxe4 {[%emt 0:01:31]} Ne7 {[%emt 0:01:07]} 16. Qxd6 {[%emt 0:00:16]} cxd6 {[%emt 0:00:15]} 17. Rad1 {[%emt 0:01:32]} Rfd8 {[%emt 0:00:23]} 18. Bd3 {[%emt 0:02:49]} Nc6 {[%emt 0:01:02]} 19. Nh4 {[%emt 0:01:03]} d5 {[%emt 0:02:24]} 20. Nxg6 {[%emt 0:01:19]} hxg6 {[%emt 0:01:00]} 21. exd5 {[%emt 0:00:17]} Nxd5 {[%emt 0:00:36]} 22. Be4 {[%emt 0:01:58]} Nce7 {[%emt 0:01:08]} 23. Rd3 {[%emt 0:04:44]} f5 {[%emt 0:00:55]} 24. Bxd5+ {[%emt 0:01:28]} Rxd5 {[%emt 0:00:31]} 25. Rfd1 {[%emt 0:00:38]} Rad8 {[%emt 0:00:31]} 26. Rxd5 {[%emt 0:01:15]} Rxd5 {[%emt 0:00:17]} 27. Re1 {[%emt 0:04:01]} a5 {[%emt 0:00:41]} 28. e4 {[%emt 0:01:23]} Rd3 {[%emt 0:01:24]} 29. Kh2 {[%emt 0:03:48]} f4 {[%emt 0:00:45]} 30. Ne2 {[%emt 0:01:06]} Re3 {[%emt 0:00:38]} 31. Kg1 {[%emt 0:02:47]} Rxe4 {[%emt 0:00:38]} 32. bxa5 {[%emt 0:00:08]} bxa5 {[%emt 0:00:20]} 33. Kf2 {[%emt 0:01:42]} Nd5 {[%emt 0:00:29]} 34. Rd1 {[%emt 0:01:43]} Nf6 {[%emt 0:00:58]} 35. Rd6 {[%emt 0:01:14]} Ra4 {[%emt 0:00:18]} 36. Kf3 {[%emt 0:03:25]} g5 {[%emt 0:02:11]} 37. g3 {[%emt 0:01:58]} Rxa2 {[%emt 0:00:24]} 38. gxf4 {[%emt 0:01:16]} exf4 {[%emt 0:00:13]} 39. Nd4 {[%emt 0:03:29]} Ra3 {[%emt 0:01:52]} 40. Rc6 {[%emt 0:01:30]} Nd5 {[%emt 0:00:21]} 41. Nb5 {[%emt 0:31:51]} Rb3 {[%emt 0:30:39]} 42. Rc5 {[%emt 0:01:06]} Ne3 {[%emt 0:01:18]} 43. Rxg5 {[%emt 0:02:01]} Nd1 {[%emt 0:00:16]} 44. Kxf4 {[%emt 0:01:27]} a4 {[%emt 0:00:32]} 45. Rg3 {[%emt 0:03:03]} Rxb5 {[%emt 0:00:25]} 46. Rd3 {[%emt 0:02:14]} Nb2 {[%emt 0:00:28]} 47. Rd2 {[%emt 0:04:47]} a3 {[%emt 0:00:19]} 48. Rd8+ {[%emt 0:02:39]} Kh7 {[%emt 0:00:28]} 49. Ra8 {[%emt 0:00:33]} Nc4 {[%emt 0:00:15]} 50. Ke4 {[%emt 0:00:54]} Ra5 {[%emt 0:00:18]} 51. Rc8 {[%emt 0:01:39]} Ra4 {[%emt 0:00:10]} 52. Rd8 {[%emt 0:01:07]} Nb2+ {[%emt 0:01:14]} 53. Rd4 {[%emt 0:00:22]} Rxd4+ {[%emt 0:00:10]} 54. cxd4 {[%emt 0:00:08]} a2 {[%emt 0:00:07]} 55. d5 {[%emt 0:00:03]} a1=Q {[%emt 0:00:08]} 56. Ke5 {[%emt 0:00:43]} Nc4+ {[%emt 0:00:37]} 57. Ke6 {[%emt 0:00:36]} Qf6+ {[%emt 0:00:35]} 58. Kd7 {[%emt 0:00:24]} Nb6+ {[%emt 0:00:31]} 59. Kc7 {[%emt 0:00:27]} Nxd5+ {[%emt 0:00:09]} 60. Kb7 {[%emt 0:00:26]} Qd6 {[%emt 0:00:35]} 61. Ka7 {[%emt 0:01:35]} Qc6 {[%emt 0:00:33]} 62. Kb8 {[%emt 0:00:42]} Qd7 {[%emt 0:00:17]} 63. h4 {[%emt 0:00:20]} Nc3 {[%emt 0:00:14]} 64. h5 {[%emt 0:00:15]} Nb5 {[%emt 0:00:09]} 65. h6 {[%emt 0:00:04]} Qc7+ {[%emt 0:00:12]} 66. Ka8 {[%emt 0:01:21]} Qa7# {[%emt 0:00:08]} 0-1

[Event "DVM U12w 2024"]
[Site "Bad Homburg"]
[Date "2024.12.27"]
[Round "2"]
[White "Khachaturyan, Viktoria"]
[Black "Lange, Lene Marie"]
[Result "0-1"]
[ECO "C42"]
[WhiteElo "966"]
[BlackElo "1501"]
[Annotator "NA RC"]
[PlyCount "150"]
[EventDate "2024.12.23"]
[EventType "team-tourn"]
[EventRounds "7"]
[EventCountry "GER"]
[SourceTitle "playchess.com"]
[Source "ChessBase"]
[SourceQuality "1"]
[TimeControl "40/5400+30:1800+30"]

1. e4 {[%emt 0:00:02]} e5 {[%emt 0:00:06]} 2. Nf3 {[%emt 0:00:05]} Nf6 {[%emt 0:00:09]} 3. Nc3 {[%emt 0:00:04]} Bb4 {[%emt 0:00:10]} 4. Bc4 {[%emt 0:00:37]} d6 {[%emt 0:00:17]} 5. d3 {[%emt 0:00:51]} O-O {[%emt 0:00:33]} 6. Bg5 {[%emt 0:00:59]} Be6 {[%emt 0:01:19]} 7. O-O {[%emt 0:00:34]} h6 {[%emt 0:02:07]} 8. Bh4 {[%emt 0:01:33]} Bxc4 {[%emt 0:02:03]} 9. dxc4 {[%emt 0:00:13]} Nbd7 {[%emt 0:00:34]} 10. Nd5 {[%emt 0:02:15]} c6 {[%emt 0:00:25]} 11. Nxb4 {[%emt 0:00:18]} Qc7 {[%emt 0:01:47]} 12. Qd2 {[%emt 0:02:18]} Nxe4 {[%emt 0:01:48]} 13. Qe3 {[%emt 0:01:41]} Nef6 {[%emt 0:01:57]} 14. Bxf6 {[%emt 0:00:57]} Nxf6 {[%emt 0:00:14]} 15. c5 {[%emt 0:00:09]} a5 {[%emt 0:00:41]} 16. Nd3 {[%emt 0:00:20]} e4 {[%emt 0:00:28]} 17. cxd6 {[%emt 0:00:41]} Qxd6 {[%emt 0:00:29]} 18. Rad1 {[%emt 0:02:12]} exf3 {[%emt 0:01:45]} 19. Nf4 {[%emt 0:05:33]} Qc7 {[%emt 0:01:22]} 20. Qxf3 {[%emt 0:00:22]} Rad8 {[%emt 0:00:52]} 21. Nh5 {[%emt 0:01:15]} Nxh5 {[%emt 0:00:40]} 22. Qxh5 {[%emt 0:00:08]} Rxd1 {[%emt 0:00:25]} 23. Rxd1 {[%emt 0:00:10]} Re8 {[%emt 0:00:48]} 24. h3 {[%emt 0:00:26]} Re5 {[%emt 0:00:49]} 25. Qh4 {[%emt 0:00:51]} Rd5 {[%emt 0:00:59]} 26. Re1 {[%emt 0:00:49]} Qd7 {[%emt 0:01:39]} 27. Qg4 {[%emt 0:01:57]} Qxg4 {[%emt 0:01:04]} 28. hxg4 {[%emt 0:00:15]} Kf8 {[%emt 0:00:36]} 29. Re3 {[%emt 0:00:41]} Rd1+ {[%emt 0:00:29]} 30. Kh2 {[%emt 0:00:19]} Rd2 {[%emt 0:00:13]} 31. Rb3 {[%emt 0:00:55]} Rxf2 {[%emt 0:00:19]} 32. Rxb7 {[%emt 0:00:18]} Rxc2 {[%emt 0:00:10]} 33. a3 {[%emt 0:01:42]} g5 {[%emt 0:01:11]} 34. b4 {[%emt 0:00:35]} axb4 {[%emt 0:00:29]} 35. Rxb4 {[%emt 0:00:17]} Ra2 {[%emt 0:00:14]} 36. Ra4 {[%emt 0:00:05]} Ke7 {[%emt 0:00:14]} 37. Ra7+ {[%emt 0:02:13]} Ke6 {[%emt 0:00:43]} 38. a4 {[%emt 0:00:12]} f6 {[%emt 0:01:17]} 39. a5 {[%emt 0:00:14]} Kd5 {[%emt 0:00:10]} 40. Ra8 {[%emt 0:02:50]} Kc5 {[%emt 0:00:26]} 41. a6 {[%emt 0:30:34]} Kb5 {[%emt 0:30:34]} 42. Rb8+ {[%emt 0:00:36]} Kc5 {[%emt 0:01:24]} 43. Ra8 {[%emt 0:00:53]} Kd6 {[%emt 0:00:46]} 44. Kg3 {[%emt 0:02:08]} Kc7 {[%emt 0:00:26]} 45. Rf8 {[%emt 0:02:59]} Rxa6 {[%emt 0:02:34]} 46. Rxf6 {[%emt 0:00:13]} Ra3+ {[%emt 0:00:41]} 47. Kf2 {[%emt 0:00:17]} Ra4 {[%emt 0:00:27]} 48. Kf3 {[%emt 0:00:25]} c5 {[%emt 0:01:06]} 49. Ke3 {[%emt 0:01:25]} Rxg4 {[%emt 0:00:22]} 50. Rxh6 {[%emt 0:01:53]} Rxg2 {[%emt 0:00:11]} 51. Rh1 {[%emt 0:00:57]} Kd6 {[%emt 0:00:58]} 52. Kf3 {[%emt 0:00:37]} Rd2 {[%emt 0:00:28]} 53. Kg4 {[%emt 0:00:16]} Rd5 {[%emt 0:00:28]} 54. Rh6+ {[%emt 0:00:53]} Ke5 {[%emt 0:00:27]} 55. Kxg5 {[%emt 0:00:08]} Kd4+ {[%emt 0:00:07]} 56. Kf4 {[%emt 0:00:36]} c4 {[%emt 0:00:25]} 57. Rh1 {[%emt 0:00:14]} c3 {[%emt 0:00:08]} 58. Rd1+ {[%emt 0:03:38]} Kc4 {[%emt 0:00:08]} 59. Rxd5 {[%emt 0:02:13]} Kxd5 {[%emt 0:00:10]} 60. Ke3 {[%emt 0:00:10]} Kc4 {[%emt 0:00:11]} 61. Ke2 {[%emt 0:01:08]} Kb3 {[%emt 0:01:09]} 62. Kd1 {[%emt 0:02:08]} Kb2 {[%emt 0:00:07]} 63. Ke2 {[%emt 0:00:10]} c2 {[%emt 0:00:05]} 64. Ke3 {[%emt 0:00:04]} c1=Q+ {[%emt 0:00:10]} 65. Ke4 {[%emt 0:00:05]} Qd2 {[%emt 0:00:07]} 66. Ke5 {[%emt 0:00:06]} Qd3 {[%emt 0:00:06]} 67. Kf4 {[%emt 0:00:13]} Qe2 {[%emt 0:00:06]} 68. Kg3 {[%emt 0:00:22]} Qf1 {[%emt 0:00:05]} 69. Kh2 {[%emt 0:00:19]} Qf3 {[%emt 0:00:23]} 70. Kg1 {[%emt 0:00:13]} Kc2 {[%emt 0:00:07]} 71. Kh2 {[%emt 0:00:13]} Kd2 {[%emt 0:00:06]} 72. Kg1 {[%emt 0:00:05]} Ke2 {[%emt 0:00:06]} 73. Kh2 {[%emt 0:00:03]} Qg4 {[%emt 0:00:17]} 74. Kh1 {[%emt 0:00:11]} Kf2 {[%emt 0:00:05]} 75. Kh2 {[%emt 0:00:14]} Qh4# {[%emt 0:00:38]} 0-1

[Event "DVM U12w 2024"]
[Site "Bad Homburg"]
[Date "2024.12.27"]
[Round "2"]
[White "Wang, Lexin Selina"]
[Black "Naz Öksüz, Meryem"]
[Result "1-0"]
[ECO "A00"]
[WhiteElo "920"]
[BlackElo "1296"]
[Annotator "NA"]
[PlyCount "79"]
[EventDate "2024.12.23"]
[EventType "team-tourn"]
[EventRounds "7"]
[EventCountry "GER"]
[SourceTitle "playchess.com"]
[Source "ChessBase"]
[SourceQuality "1"]
[TimeControl "40/5400+30:1800+30"]

1. e4 {[%emt 0:00:02]} d5 {[%emt 0:00:19]} 2. Nc3 {[%emt 0:00:29]} d4 {[%emt 0:00:25]} 3. Nce2 {[%emt 0:02:59]} e5 {[%emt 0:00:12]} 4. d3 {[%emt 0:00:22]} Nc6 {[%emt 0:00:43]} 5. Nf3 {[%emt 0:00:26]} g6 {[%emt 0:01:09]} 6. a3 {[%emt 0:01:02]} Bg7 {[%emt 0:00:46]} 7. c3 {[%emt 0:04:58]} Bg4 {[%emt 0:00:59]} 8. h3 {[%emt 0:00:31]} Bxf3 {[%emt 0:00:28]} 9. gxf3 {[%emt 0:00:30]} Qf6 {[%emt 0:00:56]} 10. Bg2 {[%emt 0:01:33]} O-O-O {[%emt 0:00:17]} 11. cxd4 {[%emt 0:04:33]} exd4 {[%emt 0:00:30]} 12. b4 {[%emt 0:01:35]} Bh6 {[%emt 0:02:41]} 13. Bb2 {[%emt 0:00:00]} Qg5 {[%emt 0:00:17]} 14. O-O {[%emt 0:01:44]} f5 {[%emt 0:00:58]} 15. b5 {[%emt 0:02:48]} Ne5 {[%emt 0:00:33]} 16. Nxd4 {[%emt 0:00:39]} Rd6 {[%emt 0:01:21]} 17. Rc1 {[%emt 0:01:42]} Kb8 {[%emt 0:01:34]} 18. Rc5 {[%emt 0:00:56]} fxe4 {[%emt 0:00:51]} 19. Qc2 {[%emt 0:01:44]} exf3 {[%emt 0:01:49]} 20. Nxf3 {[%emt 0:01:47]} Nxf3+ {[%emt 0:03:22]} 21. Kh1 {[%emt 0:00:00]} Qf4 {[%emt 0:01:55]} 22. Bxf3 {[%emt 0:00:28]} Qxf3+ {[%emt 0:00:56]} 23. Kh2 {[%emt 0:03:28]} Bf4+ {[%emt 0:00:33]} 24. Kg1 {[%emt 0:00:14]} Qxh3 {[%emt 0:00:15]} 25. f3 {[%emt 0:00:46]} Be3+ {[%emt 0:01:01]} 26. Rf2 {[%emt 0:00:23]} Qg3+ {[%emt 0:00:33]} 27. Kf1 {[%emt 0:00:36]} Qh3+ {[%emt 0:01:18]} 28. Ke2 {[%emt 0:00:37]} Re6 {[%emt 0:01:07]} 29. Rxc7 {[%emt 0:00:59]} Bb6+ {[%emt 0:00:10]} 30. Kd2 {[%emt 0:00:47]} Bxc7 {[%emt 0:00:00]} 31. Bxh8 {[%emt 0:02:04]} Ba5+ {[%emt 0:00:00]} 32. Kc1 {[%emt 0:00:29]} Re1+ {[%emt 0:00:00]} 33. Kb2 {[%emt 0:00:23]} Qf5 {[%emt 0:00:01]} 34. Qb3 {[%emt 0:01:58]} Qc8 {[%emt 0:01:33]} 35. Rc2 {[%emt 0:00:46]} Qf8 {[%emt 0:00:59]} 36. Bc3 {[%emt 0:02:10]} Bxc3+ {[%emt 0:00:18]} 37. Qxc3 {[%emt 0:00:15]} Re6 {[%emt 0:01:00]} 38. Qc7+ {[%emt 0:01:18]} Ka8 {[%emt 0:00:19]} 39. Qc8+ {[%emt 0:00:11]} Qxc8 {[%emt 0:00:21]} 40. Rxc8# {[%emt 0:00:06]} 1-0

[Event "DVM U12w 2024"]
[Site "Bad Homburg"]
[Date "2024.12.27"]
[Round "2"]
[White "Schindler, Mailin"]
[Black "Slowik, Anna"]
[Result "0-1"]
[ECO "C55"]
[WhiteElo "884"]
[BlackElo "1103"]
[Annotator "NA RC"]
[PlyCount "96"]
[EventDate "2024.12.23"]
[EventType "team-tourn"]
[EventRounds "7"]
[EventCountry "GER"]
[SourceTitle "playchess.com"]
[Source "ChessBase"]
[SourceQuality "1"]
[TimeControl "40/5400+30:1800+30"]

1. e4 {[%emt 0:00:03]} e5 {[%emt 0:00:05]} 2. Nf3 {[%emt 0:00:08]} Nc6 {[%emt 0:00:06]} 3. Nc3 {[%emt 0:00:08]} Nf6 {[%emt 0:00:06]} 4. Bc4 {[%emt 0:00:16]} Nxe4 {[%emt 0:00:07]} 5. d3 {[%emt 0:00:12]} Nxc3 {[%emt 0:00:30]} 6. bxc3 {[%emt 0:00:16]} a6 {[%emt 0:01:05]} 7. O-O {[%emt 0:00:55]} d5 {[%emt 0:00:13]} 8. Bb3 {[%emt 0:00:19]} Be7 {[%emt 0:03:30]} 9. Re1 {[%emt 0:00:52]} Qd6 {[%emt 0:01:18]} 10. a4 {[%emt 0:00:59]} O-O {[%emt 0:01:36]} 11. Ba3 {[%emt 0:00:43]} Qe6 {[%emt 0:01:11]} 12. Bxe7 {[%emt 0:00:22]} Nxe7 {[%emt 0:01:31]} 13. Rxe5 {[%emt 0:00:38]} Qf6 {[%emt 0:01:12]} 14. Re1 {[%emt 0:01:01]} Bg4 {[%emt 0:01:32]} 15. Re3 {[%emt 0:00:25]} Nf5 {[%emt 0:01:36]} 16. Re1 {[%emt 0:00:44]} d4 {[%emt 0:01:48]} 17. Re4 {[%emt 0:00:48]} Bxf3 {[%emt 0:03:52]} 18. Qxf3 {[%emt 0:00:27]} dxc3 {[%emt 0:01:32]} 19. Rf4 {[%emt 0:00:52]} g6 {[%emt 0:05:46]} 20. Qg4 {[%emt 0:00:30]} Qg7 {[%emt 0:00:40]} 21. h4 {[%emt 0:01:00]} h5 {[%emt 0:00:54]} 22. Qg5 {[%emt 0:00:27]} Kh7 {[%emt 0:02:01]} 23. Rd1 {[%emt 0:01:53]} Nd4 {[%emt 0:01:36]} 24. Re1 {[%emt 0:01:36]} Nxb3 {[%emt 0:02:29]} 25. cxb3 {[%emt 0:00:24]} Rae8 {[%emt 0:01:57]} 26. Rc1 {[%emt 0:00:15]} Re5 {[%emt 0:02:04]} 27. Qg3 {[%emt 0:01:01]} Rc5 {[%emt 0:02:08]} 28. Qe3 {[%emt 0:01:20]} Rc6 {[%emt 0:05:20]} 29. b4 {[%emt 0:01:12]} b6 {[%emt 0:02:02]} 30. b5 {[%emt 0:00:45]} axb5 {[%emt 0:00:54]} 31. axb5 {[%emt 0:00:09]} Rc5 {[%emt 0:00:09]} 32. Rc4 {[%emt 0:00:46]} Rxb5 {[%emt 0:02:37]} 33. R4xc3 {[%emt 0:00:18]} c5 {[%emt 0:00:40]} 34. Qe4 {[%emt 0:01:47]} Qd4 {[%emt 0:01:46]} 35. Qe7 {[%emt 0:00:43]} Kg7 {[%emt 0:01:26]} 36. Rc4 {[%emt 0:00:50]} Qxd3 {[%emt 0:03:47]} 37. Qe5+ {[%emt 0:00:50]} f6 {[%emt 0:00:38]} 38. Qe7+ {[%emt 0:00:43]} Rf7 {[%emt 0:01:12]} 39. Rf4 {[%emt 0:02:04]} Rxe7 {[%emt 0:01:16]} 40. Rf1 {[%emt 0:01:18]} Qxf1+ {[%emt 0:00:53]} 41. Kh2 {[%emt 0:30:16]} c4 {[%emt 0:31:10]} 42. Rf3 {[%emt 0:01:47]} Rb3 {[%emt 0:01:10]} 43. Kg3 {[%emt 0:00:27]} Rxf3+ {[%emt 0:00:15]} 44. Kxf3 {[%emt 0:00:11]} Qe2+ {[%emt 0:00:10]} 45. Kg3 {[%emt 0:00:15]} Qg4+ {[%emt 0:00:35]} 46. Kh2 {[%emt 0:00:17]} Re2 {[%emt 0:00:09]} 47. Kh1 {[%emt 0:00:27]} Qxh4+ {[%emt 0:00:20]} 48. Kg1 {[%emt 0:00:24]} Re1# {[%emt 0:00:04]} 0-1

[Event "DVM U12w 2024"]
[Site "Bad Homburg"]
[Date "2024.12.27"]
[Round "2"]
[White "He, Siqi"]
[Black "Klymenko, Stefaniia"]
[Result "1-0"]
[ECO "C50"]
[WhiteElo "870"]
[BlackElo "785"]
[Annotator "NA RC"]
[PlyCount "55"]
[EventDate "2024.12.23"]
[EventType "team-tourn"]
[EventRounds "7"]
[EventCountry "GER"]
[SourceTitle "playchess.com"]
[Source "ChessBase"]
[SourceQuality "1"]
[TimeControl "40/5400+30:1800+30"]

1. e4 {[%emt 0:00:02]} e5 {[%emt 0:00:08]} 2. Nf3 {[%emt 0:00:03]} Nc6 {[%emt 0:00:06]} 3. Bc4 {[%emt 0:00:11]} Bc5 {[%emt 0:00:11]} 4. d3 {[%emt 0:00:15]} Nf6 {[%emt 0:00:15]} 5. Nc3 {[%emt 0:00:07]} d6 {[%emt 0:00:06]} 6. h3 {[%emt 0:00:09]} Be6 {[%emt 0:00:11]} 7. Bb3 {[%emt 0:00:14]} O-O {[%emt 0:00:17]} 8. Bg5 {[%emt 0:00:11]} h6 {[%emt 0:00:08]} 9. Bh4 {[%emt 0:00:21]} d5 {[%emt 0:00:48]} 10. exd5 {[%emt 0:00:30]} Bxd5 {[%emt 0:00:09]} 11. Nxd5 {[%emt 0:00:14]} g5 {[%emt 0:00:40]} 12. Nxf6+ {[%emt 0:00:12]} Qxf6 {[%emt 0:00:22]} 13. Bg3 {[%emt 0:00:22]} Nd4 {[%emt 0:02:12]} 14. Bd5 {[%emt 0:01:56]} c6 {[%emt 0:02:03]} 15. Be4 {[%emt 0:00:24]} h5 {[%emt 0:00:42]} 16. c3 {[%emt 0:00:36]} Nxf3+ {[%emt 0:01:24]} 17. Bxf3 {[%emt 0:00:24]} Rad8 {[%emt 0:01:44]} 18. O-O {[%emt 0:00:51]} Kg7 {[%emt 0:00:28]} 19. Re1 {[%emt 0:00:36]} Rde8 {[%emt 0:01:14]} 20. Bxh5 {[%emt 0:00:19]} Qh6 {[%emt 0:00:48]} 21. Bxe5+ {[%emt 0:00:27]} Kg8 {[%emt 0:00:27]} 22. Bd4 {[%emt 0:03:26]} Bxd4 {[%emt 0:00:49]} 23. cxd4 {[%emt 0:00:16]} Rxe1+ {[%emt 0:00:11]} 24. Qxe1 {[%emt 0:00:16]} Qxh5 {[%emt 0:00:10]} 25. Qb4 {[%emt 0:00:59]} g4 {[%emt 0:00:37]} 26. d5 {[%emt 0:00:44]} cxd5 {[%emt 0:00:34]} 27. hxg4 {[%emt 0:01:23]} Qxg4 {[%emt 0:00:37]} 28. Qxg4+ {[%emt 0:00:14]} 1-0

[Event "DVM U12w 2024"]
[Site "Bad Homburg"]
[Date "2024.12.27"]
[Round "2"]
[White "Dinges, Mara"]
[Black "Rempel, Katharina"]
[Result "1-0"]
[ECO "D02"]
[WhiteElo "854"]
[BlackElo "851"]
[Annotator "NA RC"]
[PlyCount "51"]
[EventDate "2024.12.23"]
[EventType "team-tourn"]
[EventRounds "7"]
[EventCountry "GER"]
[SourceTitle "playchess.com"]
[Source "ChessBase"]
[SourceQuality "1"]
[TimeControl "40/5400+30:1800+30"]

1. d4 {[%emt 0:00:04]} d5 {[%emt 0:00:04]} 2. Bf4 {[%emt 0:00:05]} Nc6 {[%emt 0:00:11]} 3. e3 {[%emt 0:00:09]} Bf5 {[%emt 0:00:06]} 4. Nf3 {[%emt 0:00:07]} Nf6 {[%emt 0:00:13]} 5. c3 {[%emt 0:00:06]} e6 {[%emt 0:00:13]} 6. Bd3 {[%emt 0:00:12]} Qe7 {[%emt 0:00:22]} 7. Qc2 {[%emt 0:00:11]} Bxd3 {[%emt 0:00:19]} 8. Qxd3 {[%emt 0:00:10]} O-O-O {[%emt 0:01:03]} 9. Nbd2 {[%emt 0:00:23]} Qd7 {[%emt 0:04:23]} 10. Ne5 {[%emt 0:00:39]} Nxe5 {[%emt 0:00:24]} 11. Bxe5 {[%emt 0:00:26]} Be7 {[%emt 0:00:30]} 12. b4 {[%emt 0:01:00]} Bd6 {[%emt 0:02:17]} 13. Bxd6 {[%emt 0:00:40]} Qxd6 {[%emt 0:00:12]} 14. O-O {[%emt 0:00:12]} Ng4 {[%emt 0:00:19]} 15. Nf3 {[%emt 0:01:26]} h5 {[%emt 0:02:03]} 16. e4 {[%emt 0:01:11]} h4 {[%emt 0:00:54]} 17. h3 {[%emt 0:00:54]} Rh5 {[%emt 0:00:54]} 18. e5 {[%emt 0:01:32]} Qe7 {[%emt 0:01:19]} 19. a4 {[%emt 0:01:14]} Nh6 {[%emt 0:00:23]} 20. a5 {[%emt 0:01:37]} a6 {[%emt 0:00:13]} 21. b5 {[%emt 0:00:51]} c6 {[%emt 0:01:27]} 22. bxa6 {[%emt 0:01:07]} b6 {[%emt 0:00:34]} 23. axb6 {[%emt 0:01:22]} Nf5 {[%emt 0:01:11]} 24. b7+ {[%emt 0:01:28]} Kb8 {[%emt 0:00:18]} 25. Rfb1 {[%emt 0:00:48]} Qc7 {[%emt 0:01:46]} 26. a7# {[%emt 0:00:21]} 1-0

[Event "DVM U12w 2024"]
[Site "Bad Homburg"]
[Date "2024.12.27"]
[Round "2"]
[White "Nuzhnaia, Daria"]
[Black "Seyedfakhari, Elena"]
[Result "0-1"]
[ECO "C44"]
[WhiteElo "831"]
[BlackElo "986"]
[Annotator "NA RC"]
[PlyCount "74"]
[EventDate "2024.12.23"]
[EventType "team-tourn"]
[EventRounds "7"]
[EventCountry "GER"]
[SourceTitle "playchess.com"]
[Source "ChessBase"]
[SourceQuality "1"]
[TimeControl "40/5400+30:1800+30"]

1. e4 {[%emt 0:00:02]} e5 {[%emt 0:00:17]} 2. Nf3 {[%emt 0:00:05]} Nc6 {[%emt 0:00:25]} 3. d4 {[%emt 0:00:28]} exd4 {[%emt 0:00:21]} 4. Bc4 {[%emt 0:00:17]} Bc5 {[%emt 0:00:22]} 5. c3 {[%emt 0:00:18]} dxc3 {[%emt 0:00:15]} 6. Bxf7+ {[%emt 0:00:20]} Kf8 {[%emt 0:00:45]} 7. Qd5 {[%emt 0:00:57]} Qe7 {[%emt 0:00:31]} 8. O-O {[%emt 0:00:26]} Nf6 {[%emt 0:00:28]} 9. Qc4 {[%emt 0:01:55]} Qxf7 {[%emt 0:00:23]} 10. Qxc5+ {[%emt 0:00:34]} d6 {[%emt 0:00:36]} 11. Qxc3 {[%emt 0:01:17]} Nxe4 {[%emt 0:00:30]} 12. Ng5 {[%emt 0:01:22]} Nxc3 {[%emt 0:00:34]} 13. Nxf7 {[%emt 0:00:25]} Ne2+ {[%emt 0:00:29]} 14. Kh1 {[%emt 0:00:24]} Kxf7 {[%emt 0:00:15]} 15. Nc3 {[%emt 0:02:50]} Nxc1 {[%emt 0:00:13]} 16. Raxc1 {[%emt 0:00:24]} Bf5 {[%emt 0:02:16]} 17. Nd5 {[%emt 0:00:39]} Rac8 {[%emt 0:00:29]} 18. Rfe1 {[%emt 0:01:21]} Be6 {[%emt 0:00:28]} 19. Rcd1 {[%emt 0:00:48]} Bxd5 {[%emt 0:00:37]} 20. Rxd5 {[%emt 0:00:19]} Rce8 {[%emt 0:00:15]} 21. Rf5+ {[%emt 0:00:55]} Kg6 {[%emt 0:00:22]} 22. Rxe8 {[%emt 0:00:39]} Rxe8 {[%emt 0:00:13]} 23. g4 {[%emt 0:00:13]} h5 {[%emt 0:00:26]} 24. Rxh5 {[%emt 0:01:19]} Re2 {[%emt 0:00:24]} 25. Kg2 {[%emt 0:00:15]} Rxb2 {[%emt 0:00:22]} 26. a4 {[%emt 0:01:58]} Ne5 {[%emt 0:00:23]} 27. h3 {[%emt 0:00:59]} Ra2 {[%emt 0:00:14]} 28. Kg3 {[%emt 0:00:54]} Rxa4 {[%emt 0:00:17]} 29. f4 {[%emt 0:00:30]} Ra3+ {[%emt 0:00:23]} 30. Kg2 {[%emt 0:02:01]} Nf7 {[%emt 0:00:23]} 31. f5+ {[%emt 0:00:37]} Kf6 {[%emt 0:00:19]} 32. h4 {[%emt 0:01:15]} Ra2+ {[%emt 0:00:21]} 33. Kg3 {[%emt 0:00:26]} b5 {[%emt 0:00:44]} 34. Kf4 {[%emt 0:00:22]} b4 {[%emt 0:00:16]} 35. g5+ {[%emt 0:00:10]} Ke7 {[%emt 0:00:20]} 36. g6 {[%emt 0:00:41]} Ne5 {[%emt 0:00:30]} 37. Rh7 {[%emt 0:01:16]} Kf8 {[%emt 0:00:22]} 0-1

[Event "DVM U12w 2024"]
[Site "Bad Homburg"]
[Date "2024.12.27"]
[Round "2"]
[White "Lachenmaier, Alica"]
[Black "Lorenz, Mina"]
[Result "1-0"]
[ECO "A25"]
[WhiteElo "824"]
[BlackElo "776"]
[Annotator "NA RC"]
[PlyCount "75"]
[EventDate "2024.12.23"]
[EventType "team-tourn"]
[EventRounds "7"]
[EventCountry "GER"]
[SourceTitle "playchess.com"]
[Source "ChessBase"]
[SourceQuality "1"]
[TimeControl "40/5400+30:1800+30"]

1. c4 {[%emt 0:00:32]} e5 {[%emt 0:01:12]} 2. Nc3 {[%emt 0:01:31]} Nc6 {[%emt 0:01:49]} 3. g3 {[%emt 0:02:40]} Bc5 {[%emt 0:01:27]} 4. Bg2 {[%emt 0:02:22]} d6 {[%emt 0:03:47]} 5. e3 {[%emt 0:06:22]} Bf5 {[%emt 0:01:01]} 6. Nge2 {[%emt 0:01:08]} Nb4 {[%emt 0:02:26]} 7. O-O {[%emt 0:00:47]} Nc2 {[%emt 0:03:29]} 8. Rb1 {[%emt 0:04:58]} Nb4 {[%emt 0:00:47]} 9. Ne4 {[%emt 0:01:35]} Nf6 {[%emt 0:01:08]} 10. f3 {[%emt 0:00:57]} h5 {[%emt 0:03:06]} 11. d4 {[%emt 0:00:13]} Bb6 {[%emt 0:01:17]} 12. d5 {[%emt 0:00:22]} Nxa2 {[%emt 0:01:57]} 13. Qa4+ {[%emt 0:02:04]} Qd7 {[%emt 0:03:09]} 14. Qxa2 {[%emt 0:01:29]} h4 {[%emt 0:02:54]} 15. g4 {[%emt 0:00:34]} h3 {[%emt 0:00:37]} 16. gxf5 {[%emt 0:00:50]} hxg2 {[%emt 0:00:25]} 17. Kxg2 {[%emt 0:00:23]} Qxf5 {[%emt 0:01:23]} 18. Qa4+ {[%emt 0:00:44]} Ke7 {[%emt 0:00:41]} 19. N2g3 {[%emt 0:00:50]} Qh3+ {[%emt 0:00:33]} 20. Kf2 {[%emt 0:00:30]} Qxh2+ {[%emt 0:00:28]} 21. Ke1 {[%emt 0:01:30]} Qh4 {[%emt 0:02:08]} 22. Kd1 {[%emt 0:00:33]} Qh3 {[%emt 0:01:24]} 23. Rh1 {[%emt 0:01:58]} Qg2 {[%emt 0:02:10]} 24. Nf5+ {[%emt 0:00:42]} Kf8 {[%emt 0:01:04]} 25. Rxh8+ {[%emt 0:00:20]} Ng8 {[%emt 0:00:27]} 26. Qd7 {[%emt 0:00:25]} Re8 {[%emt 0:00:56]} 27. Rxg8+ {[%emt 0:01:31]} Kxg8 {[%emt 0:00:20]} 28. Qxe8+ {[%emt 0:00:06]} Kh7 {[%emt 0:00:15]} 29. Qe7 {[%emt 0:00:21]} Qf1+ {[%emt 0:01:06]} 30. Kc2 {[%emt 0:00:34]} Qxc4+ {[%emt 0:00:27]} 31. Kd2 {[%emt 0:00:31]} Ba5+ {[%emt 0:01:24]} 32. Nc3 {[%emt 0:00:48]} Kg6 {[%emt 0:04:49]} 33. Nh4+ {[%emt 0:00:38]} Kh5 {[%emt 0:01:13]} 34. Nf5 {[%emt 0:00:59]} Kg6 {[%emt 0:01:28]} 35. e4 {[%emt 0:01:02]} Qb3 {[%emt 0:01:09]} 36. Kd3 {[%emt 0:00:55]} Bxc3 {[%emt 0:00:36]} 37. Qg5+ {[%emt 0:00:18]} Kh7 {[%emt 0:00:38]} 38. Qxg7# {[%emt 0:00:07]} 1-0